bitfinex/quotes_BTCUSD_20250314
["timestamp","ask_amount","ask_price","bid_price","bid_amount"]
[1741928829539,0.02321287,82146.0,82145.0,0.28796285]
[1741928829950,0.02321287,82146.0,82145.0,0.28696285]
[1741928830375,0.02321287,82146.0,82145.0,0.28896285]
[1741928831402,0.02321287,82146.0,82145.0,0.29196285]
[1741928832905,0.02321287,82146.0,82145.0,0.71146285]
[1741928837251,0.0003382,82146.0,82145.0,0.71146285]
[1741928837918,0.02317724,82146.0,82145.0,0.71146285]
[1741928841451,0.02317724,82146.0,82145.0,1.48450285]
[1741928843402,0.0003382,82146.0,82145.0,1.48450285]
[1741928852735,0.0003382,82146.0,82145.0,1.34942285]
[1741928852935,0.0003382,82146.0,82145.0,1.48446285]
[1741928860609,0.0003382,82146.0,82145.0,0.71142285]
[1741928871167,0.0003382,82146.0,82145.0,0.66532285]
[1741928875055,0.0003382,82146.0,82145.0,0.53028285]
[1741928875206,0.0003382,82146.0,82145.0,0.66532285]
[1741928884394,0.0003382,82146.0,82145.0,0.71262285]
[1741928887556,0.0003382,82146.0,82145.0,0.84686469]
[1741928888538,0.0003382,82146.0,82145.0,0.84186469]
[1741928888738,0.0003382,82146.0,82145.0,0.84586469]
[1741928888967,0.0003382,82146.0,82145.0,2.34986469]
[1741928889360,0.0003382,82146.0,82145.0,2.34586469]
[1741928889786,0.0003382,82146.0,82145.0,2.35086469]
[1741928891830,0.0003382,82146.0,82145.0,0.85086469]
[1741928894411,0.0003382,82146.0,82145.0,1.54846469]
[1741928899540,0.0003382,82146.0,82145.0,3.04846469]
[1741928899737,0.0003382,82181.0,82179.0,0.012168]
[1741928899936,0.0003382,82181.0,82173.0,0.012169]
[1741928899937,0.0125062,82180.0,82175.0,0.13504]
[1741928900142,0.0125062,82180.0,82179.0,0.01470938]
[1741928900336,0.255545,82177.0,82175.0,0.13504]
[1741928900542,0.012168,82177.0,82175.0,0.13504]
[1741928900781,0.012168,82177.0,82176.0,0.01469694]
[1741928901012,0.16558086,82179.0,82176.0,0.01469694]
[1741928901175,0.16558086,82179.0,82175.0,0.13504]
[1741928901384,0.17971951,82179.0,82177.0,0.01469694]
[1741928901589,0.17971951,82179.0,82175.0,0.13504]
[1741928901789,0.47971951,82179.0,82178.0,0.01469694]
[1741928902110,0.47971951,82179.0,82175.0,0.13504]
[1741928902289,0.47971951,82179.0,82178.0,0.01469694]
[1741928902470,0.31413865,82179.0,82177.0,0.243374]
[1741928902707,0.01413865,82179.0,82178.0,0.02686494]
[1741928902915,0.0003382,82180.0,82179.0,0.255539]
[1741928903117,0.00046128,82180.0,82179.0,0.255539]
[1741928903744,0.00046128,82180.0,82179.0,0.27023594]
[1741928905110,0.01448822,82180.0,82179.0,0.27023594]
[1741928911067,0.00046128,82180.0,82179.0,0.27023594]
[1741928911951,0.01492928,82180.0,82179.0,0.27023594]
[1741928915848,0.00046128,82180.0,82179.0,0.27023594]
[1741928916236,0.00046128,82180.0,82179.0,0.34580504]
[1741928917320,0.00046128,82180.0,82179.0,0.34680504]
[1741928918347,0.00046128,82180.0,82179.0,0.34580504]
[1741928919295,0.00046128,82180.0,82179.0,0.34880504]
[1741928919870,0.00046128,82180.0,82179.0,0.35380504]
[1741928947323,0.3,82189.0,82185.0,0.243353]
[1741928947470,0.3,82189.0,82186.0,0.014654]
[1741928947671,0.3,82189.0,82185.0,0.25552]
[1741928947871,0.3,82189.0,82186.0,0.014654]
[1741928948174,0.3,82189.0,82185.0,0.25552]
[1741928948353,0.3,82189.0,82187.0,0.014654]
[1741928948574,0.5558374,82192.0,82186.0,0.243348]
[1741928948731,0.3,82190.0,82188.0,0.014654]
[1741928948934,0.3,82190.0,82189.0,0.13496]
[1741928949184,0.3,82190.0,82189.0,0.149614]
[1741928949527,0.31389867,82190.0,82189.0,0.149614]
[1741928950286,0.01389867,82190.0,82189.0,0.149614]
[1741928950651,0.0001692,82191.0,82189.0,0.149614]
[1741928951072,0.3,82190.0,82189.0,0.149614]
[1741928951703,0.31365124,82190.0,82189.0,0.151614]
[1741928955270,0.01365124,82190.0,82189.0,0.151614]
[1741928955571,0.0001692,82191.0,82189.0,0.151614]
[1741928956179,0.3,82190.0,82189.0,0.151614]
[1741928956390,0.3,82190.0,82189.0,0.149614]
[1741928956958,0.312166,82190.0,82189.0,0.149614]
[1741928957252,0.312166,82190.0,82189.0,0.13596]
[1741928957836,0.312166,82190.0,82189.0,0.15061233]
[1741928958678,0.312166,82190.0,82189.0,0.14961233]
[1741928959159,0.312166,82190.0,82189.0,0.15161233]
[1741928959519,0.312166,82190.0,82189.0,0.13696]
[1741928961760,0.312166,82190.0,82189.0,0.15161233]
[1741928962162,0.312166,82190.0,82189.0,0.13696]
[1741928962950,0.312166,82190.0,82189.0,0.15195053]
[1741928963106,0.3123351,82190.0,82189.0,0.15195053]
[1741928965428,0.3123351,82190.0,82189.0,0.1372982]
[1741928965630,0.3123351,82190.0,82189.0,0.15195265]
[1741928973814,0.3123351,82190.0,82189.0,0.01699265]
[1741928974044,0.3123351,82190.0,82189.0,0.15195265]
[1741928975366,0.3123351,82190.0,82189.0,0.01699265]
[1741928975775,0.3123351,82190.0,82189.0,0.0023382]
[1741928976272,0.3123351,82190.0,82189.0,0.0003382]
[1741928982898,0.0001691,82190.0,82189.0,0.0003382]
[1741928983097,0.0123351,82190.0,82189.0,0.01499405]
[1741928983416,0.0123351,82190.0,82189.0,0.0003382]
[1741928985326,0.0123351,82190.0,82189.0,0.01499405]
[1741928986123,0.0123351,82190.0,82189.0,0.0003382]
[1741929000217,0.555536,82180.0,82179.0,0.0001691]
[1741929000415,0.602436,82180.0,82179.0,0.0001691]
[1741929000616,0.602436,82180.0,82151.0,0.046]
[1741929000617,0.255598,82160.0,82159.0,0.13496]
[1741929001058,0.255598,82160.0,82159.0,0.1497354]
[1741929001237,0.255598,82160.0,82159.0,0.13508308]
[1741929001585,0.255598,82160.0,82159.0,0.1497354]
[1741929002892,0.255598,82160.0,82159.0,0.0147754]
[1741929003026,0.555598,82160.0,82159.0,0.0147754]
[1741929003210,0.555598,82160.0,82159.0,0.00012308]
[1741929003423,0.555598,82160.0,82159.0,0.00312308]
[1741929004773,0.555598,82160.0,82159.0,0.00012308]
[1741929005162,0.555598,82160.0,82159.0,0.00112308]
[1741929008726,0.56461653,82160.0,82159.0,0.00112308]
[1741929009734,0.00901853,82160.0,82159.0,0.00112308]
[1741929010143,0.255598,82160.0,82159.0,0.00146148]
[1741929011473,0.255598,82160.0,82159.0,0.00046148]
[1741929011857,0.260598,82160.0,82159.0,0.08146148]
[1741929012233,0.255598,82160.0,82159.0,0.08146148]
[1741929012619,0.258598,82160.0,82159.0,0.08146148]
[1741929013261,0.558598,82160.0,82159.0,0.08146148]
[1741929014144,0.555598,82160.0,82159.0,0.08146148]
[1741929014478,0.556598,82160.0,82159.0,0.08146148]
[1741929015851,0.556598,82160.0,82159.0,0.00046148]
[1741929022202,0.5567672,82160.0,82159.0,0.00046148]
[1741929028142,0.5557672,82160.0,82159.0,0.00046148]
[1741929028598,0.5597672,82160.0,82159.0,0.00046148]
[1741929029455,0.5627672,82160.0,82159.0,0.00046148]
[1741929029885,0.5597672,82160.0,82159.0,0.00046148]
[1741929030129,0.5627672,82160.0,82159.0,0.00046148]
[1741929030938,0.676327,82160.0,82159.0,0.00046148]
[1741929036145,0.5627672,82160.0,82159.0,0.00046148]
[1741929037441,0.5597672,82160.0,82159.0,0.00046148]
[1741929038428,0.5557672,82160.0,82159.0,0.00046148]
[1741929038666,0.5597672,82160.0,82159.0,0.00046148]
[1741929039615,0.5627672,82160.0,82159.0,0.00046148]
[1741929040145,0.5597672,82160.0,82159.0,0.00046148]
[1741929040522,0.5627672,82160.0,82159.0,0.00046148]
[1741929041651,0.671077,82160.0,82159.0,0.00046148]
[1741929051063,0.555641,82146.0,82145.0,0.079469]
[1741929051247,0.555641,82146.0,82145.0,0.07959205]
[1741929051439,0.555641,82146.0,82145.0,0.09658348]
[1741929053338,0.67560189,82146.0,82145.0,0.09658348]
[1741929053727,0.555641,82146.0,82145.0,0.07959205]
[1741929054899,0.556641,82146.0,82145.0,0.00029205]
[1741929055309,0.5740679,82146.0,82145.0,0.00029205]
[1741929058173,0.57352118,82146.0,82145.0,0.00029205]
[1741929060679,0.57352118,82146.0,82145.0,0.07619205]
[1741929066194,0.57352118,82146.0,82145.0,0.0941361]
[1741929068419,0.57385958,82146.0,82145.0,0.0941361]
[1741929068851,0.57385958,82146.0,82145.0,0.07619205]
[1741929070055,0.57385958,82146.0,82145.0,0.00029205]
[1741929070466,0.69382047,82146.0,82145.0,0.01824469]
[1741929070853,0.69382047,82146.0,82145.0,0.00029205]
[1741929071531,0.57385958,82146.0,82145.0,0.00029205]
[1741929071739,0.012177,82116.0,82115.0,0.0459]
[1741929071902,0.255734,82116.0,82115.0,0.0459]
[1741929072781,0.312178,82115.0,82114.0,0.0001691]
[1741929073188,0.312178,82115.0,82114.0,0.00057967]
[1741929074022,0.012178,82115.0,82114.0,0.00057967]
[1741929074413,0.29512927,82117.0,82114.0,0.00357967]
[1741929074821,0.012177,82116.0,82115.0,0.0766]
[1741929075627,0.255734,82116.0,82115.0,0.0766]
[1741929076999,0.255734,82116.0,82115.0,0.0786]
[1741929077699,0.255734,82116.0,82115.0,0.0796]
[1741929078639,0.30421853,82117.0,82115.0,0.0796]
[1741929079433,0.30421853,82117.0,82116.0,0.01803661]
[1741929080653,0.31639553,82117.0,82116.0,0.02003661]
[1741929080785,0.31639553,82117.0,82116.0,0.02103661]
[1741929081767,0.31639553,82117.0,82116.0,0.003]
[1741929081967,0.31673413,82117.0,82116.0,0.003]
[1741929083224,0.30455713,82117.0,82116.0,0.003]
[1741929083575,0.00942786,82117.0,82116.0,0.003]
[1741929084176,0.02160486,82117.0,82116.0,0.003]
[1741929084930,0.02160486,82117.0,82116.0,0.02103611]
[1741929085136,0.02160486,82117.0,82116.0,0.003]
[1741929085331,0.02160486,82117.0,82116.0,0.02103611]
[1741929087152,0.02160486,82117.0,82116.0,0.003]
[1741929097101,0.42926505,82117.0,82116.0,0.003]
[1741929097331,0.32160486,82117.0,82116.0,0.003]
[1741929097548,0.32160486,82117.0,82116.0,0.002]
[1741929097742,0.32160486,82117.0,82115.0,0.0001693]
[1741929097743,0.555734,82116.0,82115.0,0.0001693]
[1741929100935,0.555734,82116.0,82115.0,0.0011693]
[1741929107054,0.012178,82115.0,82114.0,0.00057967]
[1741929107258,0.43213889,82115.0,82114.0,0.00057967]
[1741929107458,0.43213889,82115.0,82106.0,0.0003382]
[1741929107459,0.255794,82097.0,82096.0,0.07679447]
[1741929107730,0.255794,82097.0,82096.0,0.09296113]
[1741929108318,0.255794,82097.0,82096.0,0.07685431]
[1741929109115,0.01218,82096.0,82095.0,1e-07]
[1741929109325,0.555828,82086.0,82076.0,0.0003384]
[1741929109492,0.555856,82077.0,82076.0,0.0003384]
[1741929111385,0.555856,82077.0,82076.0,0.0023384]
[1741929111564,0.555856,82077.0,82076.0,0.0033384]
[1741929112870,0.255856,82077.0,82076.0,0.0033384]
[1741929113460,0.3,82079.0,82076.0,0.0515384]
[1741929113663,0.255839,82083.0,82078.0,0.077]
[1741929113925,0.243663,82081.0,82079.0,0.01513671]
[1741929114323,0.012183,82080.0,82079.0,0.01513671]
[1741929114721,0.255846,82081.0,82079.0,0.01513671]
[1741929115819,0.255842,82082.0,82079.0,0.01513671]
[1741929117131,0.243653,82084.0,82079.0,0.01613671]
[1741929117462,0.243664,82080.0,82079.0,0.01613671]
[1741929117686,0.255847,82080.0,82079.0,0.01513671]
[1741929118055,0.255847,82080.0,82079.0,0.01613671]
[1741929118458,0.255847,82080.0,82079.0,0.01513671]
[1741929119020,0.255847,82080.0,82079.0,0.001]
[1741929119298,0.255847,82080.0,82079.0,0.01619301]
[1741929121257,0.012183,82080.0,82079.0,0.01619301]
[1741929122431,0.24366,82082.0,82079.0,0.01619301]
[1741929122631,0.012183,82081.0,82079.0,0.01619301]
[1741929122806,0.255846,82081.0,82079.0,0.01619301]
[1741929123926,0.012183,82080.0,82079.0,0.01619301]
[1741929124313,0.012183,82080.0,82079.0,0.01519301]
[1741929124721,0.012183,82080.0,82079.0,0.01619301]
[1741929125123,0.012183,82080.0,82079.0,0.01519301]
[1741929125457,0.012183,82080.0,82079.0,0.01619301]
[1741929125657,0.243663,82081.0,82079.0,0.01619301]
[1741929126140,0.012183,82080.0,82079.0,0.01619301]
[1741929127774,0.25585,82079.0,82078.0,0.13508]
[1741929129419,0.25585,82079.0,82078.0,0.13708]
[1741929130016,0.25585,82079.0,82078.0,0.13808]
[1741929130615,0.55585,82079.0,82078.0,0.003]
[1741929131442,0.55585,82079.0,82078.0,0.001]
[1741929132693,0.555856,82077.0,82076.0,0.0003384]
[1741929134150,0.556856,82077.0,82076.0,0.0003384]
[1741929142024,0.560856,82077.0,82076.0,0.0003384]
[1741929142150,0.559856,82077.0,82076.0,0.0003384]
[1741929142374,0.67981689,82077.0,82076.0,0.0003384]
[1741929143074,0.68481689,82077.0,82076.0,0.0003384]
[1741929144184,0.255894,82065.0,82064.0,0.0001692]
[1741929144415,0.555894,82065.0,82064.0,0.00021012]
[1741929145463,0.556894,82065.0,82064.0,0.00021012]
[1741929145823,0.40322981,82065.0,82064.0,0.00021012]
[1741929146142,0.41541481,82065.0,82064.0,0.00021012]
[1741929146444,0.66012381,82065.0,82064.0,0.00021012]
[1741929151174,0.5609,82063.0,82062.0,0.0001692]
[1741929151498,0.75766089,82063.0,82062.0,0.0001692]
[1741929151862,0.6427,82063.0,82062.0,0.0001692]
[1741929152934,0.6477,82063.0,82062.0,0.0001692]
[1741929153538,0.6517,82063.0,82062.0,0.0001692]
[1741929154247,0.555913,82059.0,82043.0,0.0774]
[1741929155052,0.555913,82059.0,82058.0,1e-06]
[1741929155363,0.67587389,82059.0,82058.0,1e-06]
[1741929155778,0.67987389,82059.0,82058.0,1e-06]
[1741929156815,0.68287389,82059.0,82058.0,1e-06]
[1741929157394,0.562913,82059.0,82058.0,1e-06]
[1741929158500,0.562913,82059.0,82037.0,0.0466]
[1741929158501,0.255978,82038.0,82037.0,0.124]
[1741929158908,0.255978,82038.0,82037.0,0.13966082]
[1741929160163,0.255978,82038.0,82037.0,0.14066082]
[1741929162095,0.67277865,82038.0,82037.0,0.01666082]
[1741929162318,0.57160895,82038.0,82037.0,0.00140956]
[1741929163048,0.57160895,82038.0,82037.0,0.00040956]
[1741929163245,0.5809845,82038.0,82037.0,0.00040956]
[1741929163730,0.5839845,82038.0,82037.0,0.00040956]
[1741929163990,0.5859845,82038.0,82037.0,0.00040956]
[1741929164342,0.5889845,82038.0,82037.0,0.00040956]
[1741929164553,0.5839845,82038.0,82037.0,0.00040956]
[1741929164761,0.5859845,82038.0,82037.0,0.00057876]
[1741929167241,0.243854,82016.0,82015.0,0.0782]
[1741929167427,0.256046,82016.0,82015.0,0.0782]
[1741929167637,0.256046,82016.0,82015.0,0.07832322]
[1741929168423,0.556046,82016.0,82015.0,0.07832322]
[1741929170128,0.557046,82016.0,82015.0,0.07832322]
[1741929170482,0.256039,82019.0,82015.0,0.07832322]
[1741929170686,0.012191,82022.0,82016.0,0.0484]
[1741929170858,0.256043,82018.0,82017.0,0.0784]
[1741929171061,0.256043,82018.0,82017.0,0.09368255]
[1741929171664,0.256043,82018.0,82017.0,0.0784]
[1741929173263,0.256043,82018.0,82017.0,0.0794]
[1741929175642,0.256043,82018.0,82017.0,0.0784]
[1741929175841,0.256043,82018.0,82017.0,0.0794]
[1741929176414,0.256043,82018.0,82017.0,0.09468255]
[1741929177134,0.256043,82018.0,82017.0,0.09368255]
[1741929178197,0.256043,82018.0,82017.0,0.09385175]
[1741929178924,0.256043,82018.0,82017.0,0.22949175]
[1741929179736,0.256043,82018.0,82017.0,0.09385175]
[1741929179959,0.256043,82018.0,82017.0,0.0785692]
[1741929180720,0.256035,82020.0,82017.0,0.0785692]
[1741929180935,0.243847,82019.0,82018.0,0.01531206]
[1741929181129,0.256039,82019.0,82018.0,0.09371206]
[1741929181803,0.256039,82019.0,82018.0,0.0784]
[1741929182564,0.256039,82019.0,82018.0,0.09371206]
[1741929183322,0.256039,82019.0,82018.0,0.0784]
[1741929183525,0.256035,82020.0,82018.0,0.09371206]
[1741929184050,0.012192,82019.0,82018.0,0.09371206]
[1741929184414,0.012192,82019.0,82018.0,0.0784]
[1741929185517,0.25604,82018.0,82017.0,0.0001692]
[1741929186691,0.256033,82021.0,82018.0,0.0789]
[1741929186844,0.012191,82022.0,82018.0,0.091092]
[1741929186845,0.3,82022.0,82018.0,0.091092]
[1741929187044,0.543838,82022.0,82020.0,0.0789]
[1741929187603,0.3,82022.0,82021.0,0.01531135]
[1741929188121,0.312191,82022.0,82021.0,0.01531135]
[1741929188329,0.25604,82018.0,82017.0,0.0001692]
[1741929189465,0.556032,82022.0,82018.0,0.0763]
[1741929189466,0.301,82022.0,82018.0,0.0763]
[1741929189665,0.312191,82024.0,82018.0,0.0763]
[1741929189911,0.3,82023.0,82020.0,0.0763]
[1741929190124,0.256029,82022.0,82020.0,0.0763]
[1741929190530,0.3,82023.0,82020.0,0.32014]
[1741929190730,0.001,82022.0,82020.0,0.0763]
[1741929190934,0.001,82022.0,82021.0,0.01530821]
[1741929192187,0.3,82023.0,82021.0,0.01530821]
[1741929192449,0.3,82023.0,82022.0,0.13664]
[1741929192659,0.3,82023.0,82022.0,0.13564]
[1741929193023,0.3,82023.0,82022.0,0.15094821]
[1741929193224,0.3,82023.0,82022.0,0.14994821]
[1741929193849,0.243806,82033.0,82027.0,0.012191]
[1741929194050,0.243806,82033.0,82029.0,0.081]
[1741929194427,0.243806,82033.0,82030.0,0.01530126]
[1741929195579,0.243809,82032.0,82030.0,0.01530126]
[1741929195782,0.3,82036.0,82030.0,0.27130426]
[1741929195986,0.3,82036.0,82030.0,0.27030426]
[1741929196401,0.0125284,82031.0,82030.0,0.01430126]
[1741929196603,0.0145284,82031.0,82030.0,0.01430126]
[1741929196804,0.0165284,82031.0,82030.0,0.01430126]
[1741929197059,0.0145284,82031.0,82030.0,0.01430126]
[1741929197312,0.0145284,82031.0,82029.0,0.08]
[1741929197313,0.2441494,82031.0,82029.0,0.08]
[1741929197527,0.0023384,82031.0,82030.0,0.01524571]
[1741929197693,0.0033384,82031.0,82030.0,0.01524571]
[1741929198280,0.0023384,82031.0,82030.0,0.01524571]
[1741929198810,0.0145284,82031.0,82030.0,0.01524571]
[1741929198945,0.0125284,82031.0,82030.0,0.01524571]
[1741929199400,0.0135284,82031.0,82030.0,0.01524571]
[1741929199843,0.0145284,82031.0,82030.0,0.01524571]
[1741929200030,0.0155284,82031.0,82030.0,0.01524571]
[1741929200229,0.0145284,82031.0,82030.0,0.01524571]
[1741929200634,0.0023384,82031.0,82030.0,0.01524571]
[1741929201437,0.0145284,82031.0,82030.0,0.01524571]
[1741929204956,0.0145284,82031.0,82019.0,0.0476]
[1741929204957,0.256034,82020.0,82019.0,0.0476]
[1741929205132,0.012192,82019.0,82018.0,0.0826]
[1741929205501,0.012192,82019.0,82018.0,0.21912]
[1741929205710,0.012192,82019.0,82018.0,0.23434333]
[1741929206342,0.012192,82020.0,82018.0,0.23434333]
[1741929206549,0.012192,82019.0,82018.0,0.23734333]
[1741929207267,0.256034,82022.0,82018.0,0.23434333]
[1741929207600,0.243841,82021.0,82018.0,0.23434333]
[1741929208402,0.243844,82020.0,82018.0,0.23434333]
[1741929208539,0.256036,82020.0,82018.0,0.23434333]
[1741929208899,0.012192,82019.0,82018.0,0.23634333]
[1741929209068,0.012192,82019.0,82018.0,0.23434333]
[1741929209274,0.012192,82019.0,82018.0,0.23634333]
[1741929209596,0.012192,82019.0,82018.0,0.23434333]
[1741929209912,0.012192,82019.0,82018.0,0.23634333]
[1741929210332,0.012192,82019.0,82018.0,0.23434333]
[1741929210529,0.012192,82019.0,82018.0,0.23734333]
[1741929210809,0.243845,82020.0,82018.0,0.23734333]
[1741929210972,0.256037,82020.0,82018.0,0.23734333]
[1741929211376,0.012192,82019.0,82018.0,0.23734333]
[1741929211869,0.012192,82019.0,82018.0,0.23434333]
[1741929212236,0.012192,82019.0,82018.0,0.23634333]
[1741929212489,0.012192,82019.0,82018.0,0.23434333]
[1741929212912,0.012192,82019.0,82018.0,0.01822333]
[1741929213325,0.012192,82019.0,82018.0,0.003]
[1741929214466,0.312192,82019.0,82018.0,0.003]
[1741929214667,0.394992,82019.0,82018.0,0.003]
[1741929214945,0.394992,82019.0,82018.0,0.0031692]
[1741929215178,0.43215289,82019.0,82018.0,0.0001692]
[1741929215381,0.43315289,82019.0,82018.0,0.0001692]
[1741929215588,0.313192,82019.0,82018.0,0.0001692]
[1741929215715,0.312192,82019.0,82018.0,0.0001692]
[1741929216681,0.314192,82019.0,82018.0,0.0001692]
[1741929216842,0.316192,82019.0,82018.0,0.0001692]
[1741929217243,0.37077989,82019.0,82018.0,0.0001692]
[1741929217450,0.316192,82019.0,82018.0,0.0001692]
[1741929219150,0.09369134,82019.0,82018.0,0.0001692]
[1741929219564,0.016192,82019.0,82018.0,0.0001692]
[1741929225883,0.016192,82019.0,82018.0,0.0798692]
[1741929226670,0.004,82019.0,82018.0,0.0798692]
[1741929227065,0.004,82019.0,82018.0,0.09501251]
[1741929227383,0.016192,82019.0,82018.0,0.09501251]
[1741929227624,0.014192,82019.0,82018.0,0.09501251]
[1741929228409,0.016192,82019.0,82018.0,0.09501251]
[1741929228902,0.014192,82019.0,82018.0,0.09501251]
[1741929229310,0.002,82019.0,82018.0,0.09501251]
[1741929229468,0.243841,82021.0,82018.0,0.09501251]
[1741929229669,0.0003384,82030.0,82020.0,0.256033]
[1741929229670,0.256015,82027.0,82020.0,0.256033]
[1741929229875,0.243826,82026.0,82021.0,0.0462]
[1741929230077,0.243837,82022.0,82021.0,0.0462]
[1741929230281,0.256028,82022.0,82021.0,0.0462]
[1741929230674,0.012191,82023.0,82021.0,0.0462]
[1741929230874,0.012191,82022.0,82021.0,0.0462]
[1741929237416,0.012192,82020.0,82019.0,0.1364]
[1741929242729,0.312192,82020.0,82019.0,0.1364]
[1741929243112,0.556037,82019.0,82018.0,0.0001692]
[1741929244625,0.556037,82019.0,82018.0,0.0011692]
[1741929245430,0.256037,82019.0,82018.0,0.0011692]
[1741929245631,0.3,82020.0,82018.0,0.0822692]
[1741929245828,0.3,82020.0,82019.0,0.057592]
[1741929246530,0.3,82020.0,82019.0,0.07271856]
[1741929246947,0.0003386,82022.0,82021.0,0.012191]
[1741929247147,0.0003386,82022.0,82021.0,0.093291]
[1741929247303,0.0003386,82022.0,82021.0,0.10840648]
[1741929248812,0.0003386,82022.0,82021.0,0.10962555]
[1741929249045,0.0003386,82022.0,82021.0,0.10840648]
[1741929249551,0.0003386,82022.0,82021.0,0.09621548]
[1741929250353,0.0125296,82022.0,82021.0,0.09621548]
[1741929250564,0.0125296,82022.0,82021.0,0.09721548]
[1741929250761,0.0003386,82022.0,82021.0,0.09721548]
[1741929253852,0.0125296,82022.0,82021.0,0.09721548]
[1741929265429,0.0125296,82022.0,82021.0,0.15191548]
[1741929265894,0.0125296,82022.0,82021.0,0.1368]
[1741929266095,0.0125296,82022.0,82021.0,0.15191279]
[1741929270244,0.0003386,82022.0,82021.0,0.15191279]
[1741929270360,0.0125296,82022.0,82021.0,0.15191279]
[1741929270773,0.0003386,82022.0,82021.0,0.15191279]
[1741929272457,0.01945138,82022.0,82021.0,0.15191279]
[1741929272808,0.01945138,82022.0,82021.0,0.16410379]
[1741929273230,0.01945138,82022.0,82021.0,0.24430379]
[1741929278666,0.01945138,82022.0,82021.0,0.09631279]
[1741929278815,0.33164238,82022.0,82021.0,0.01611279]
[1741929279017,0.33164238,82022.0,82021.0,0.001]
[1741929280734,0.3125296,82022.0,82021.0,0.001]
[1741929283598,0.33164348,82022.0,82021.0,0.001]
[1741929284480,0.08138352,82022.0,82021.0,0.001]
[1741929284888,0.03130488,82022.0,82021.0,0.001]
[1741929285828,0.03130488,82022.0,82021.0,0.13648]
[1741929286336,0.03164348,82022.0,82021.0,0.13648]
[1741929286925,0.03164348,82022.0,82021.0,0.21868]
[1741929287463,0.03164348,82022.0,82021.0,0.23379573]
[1741929288923,0.33164348,82022.0,82021.0,0.23379573]
[1741929292632,0.33164348,82022.0,82021.0,0.15159573]
[1741929293000,0.33164348,82022.0,82021.0,0.13648]
[1741929293209,0.33164348,82022.0,82021.0,0.15159295]
[1741929296700,0.33164348,82022.0,82021.0,0.01611295]
[1741929296900,0.33164348,82022.0,82021.0,0.13628]
[1741929298348,0.33164348,82022.0,82021.0,0.1364491]
[1741929300521,0.01945248,82022.0,82021.0,0.2156491]
[1741929300779,0.57548048,82022.0,82021.0,0.23075523]
[1741929302433,0.57548048,82022.0,82021.0,0.23071523]
[1741929303553,0.31945248,82022.0,82021.0,0.23071523]
[1741929303789,0.01945248,82022.0,82021.0,0.23071523]
[1741929304131,0.01945248,82022.0,82021.0,0.28972524]
[1741929304132,0.0003386,82022.0,82021.0,0.28972524]
[1741929304314,0.0003386,82022.0,82021.0,0.28850623]
[1741929304970,0.0003386,82022.0,82021.0,0.28750623]
[1741929305175,0.0003386,82022.0,82021.0,0.29050623]
[1741929305860,0.0003386,82022.0,82021.0,0.29150623]
[1741929306498,0.0003386,82022.0,82021.0,0.29050623]
[1741929306673,0.012189,82036.0,82021.0,0.29050623]
[1741929306674,0.012187,82049.0,82030.0,0.01219]
[1741929306896,0.27505628,82049.0,82043.0,0.319673]
[1741929307121,0.01911028,82049.0,82045.0,0.057488]
[1741929307322,0.01911028,82049.0,82045.0,0.05870675]
[1741929307562,0.01911028,82049.0,82045.0,0.1503942]
[1741929307773,0.2559,82063.0,82045.0,0.1503942]
[1741929307774,0.243664,82080.0,82073.0,0.012184]
[1741929307974,0.012183,82075.0,82074.0,0.13596]
[1741929308206,0.012183,82075.0,82074.0,0.15102032]
[1741929309280,0.015183,82075.0,82074.0,0.15102032]
[1741929309684,0.003,82075.0,82074.0,0.15102032]
[1741929309896,0.005,82075.0,82074.0,0.15102032]
[1741929310778,0.002,82075.0,82074.0,0.15102032]
[1741929311033,0.004,82075.0,82074.0,0.16320432]
[1741929311392,0.004,82075.0,82074.0,0.16442258]
[1741929311791,0.002,82075.0,82074.0,0.16442258]
[1741929312223,0.01914211,82080.0,82078.0,0.255851]
[1741929312637,0.01914211,82080.0,82079.0,0.01494064]
[1741929313405,0.01914211,82080.0,82079.0,0.01394064]
[1741929314418,0.01914211,82080.0,82079.0,0.01794064]
[1741929315633,0.01914211,82080.0,82079.0,0.02094064]
[1741929316739,0.01914211,82080.0,82079.0,0.27679064]
[1741929318004,4.099e-05,82080.0,82079.0,0.27679064]
[1741929318861,4.099e-05,82080.0,82079.0,0.02094064]
[1741929319883,4.099e-05,82080.0,82079.0,0.15662064]
[1741929320096,4.099e-05,82080.0,82079.0,0.24820364]
[1741929321745,0.00037919,82080.0,82079.0,0.24820364]
[1741929327672,0.0003386,82116.0,82102.0,0.39881885]
[1741929327841,0.012178,82109.0,82102.0,0.26498]
[1741929328041,4.109e-05,82103.0,82102.0,0.1763201]
[1741929329643,4.109e-05,82103.0,82102.0,0.1944991]
[1741929330007,4.109e-05,82103.0,82102.0,0.1914991]
[1741929330189,4.109e-05,82103.0,82102.0,0.19571697]
[1741929333771,0.00037909,82103.0,82102.0,0.19571697]
[1741929335495,0.00037909,82103.0,82102.0,0.15733941]
[1741929336295,0.24397509,82103.0,82102.0,0.15733941]
[1741929336699,0.25615409,82103.0,82102.0,0.15733941]
[1741929337049,0.24397509,82103.0,82102.0,0.15733941]
[1741929337248,0.00037909,82103.0,82102.0,0.15733941]
[1741929344722,0.00037909,82103.0,82102.0,0.02085941]
[1741929344867,0.00037909,82103.0,82102.0,0.15702831]
[1741929346014,0.01255809,82103.0,82102.0,0.15702831]
[1741929347986,0.01255809,82103.0,82102.0,0.02102831]
[1741929348190,0.31255809,82103.0,82102.0,0.0061689]
[1741929349060,0.31255809,82103.0,82102.0,0.0001689]
[1741929349258,0.31255809,82103.0,82102.0,0.0031689]
[1741929351244,0.33165388,82103.0,82102.0,0.0031689]
[1741929351427,0.34077008,82103.0,82102.0,0.0031689]
[1741929353999,0.34077008,82103.0,82102.0,0.0021689]
[1741929354375,0.34077008,82103.0,82102.0,0.0031689]
[1741929354571,0.34077008,82103.0,82102.0,0.0011689]
[1741929354912,0.34077008,82103.0,82102.0,0.0031689]
[1741929355472,0.34077008,82103.0,82102.0,0.0011689]
[1741929355716,0.34077008,82103.0,82102.0,0.0031689]
[1741929360626,0.45161207,82103.0,82102.0,0.0031689]
[1741929360798,0.56041628,82103.0,82102.0,9e-07]
[1741929361608,0.012182,82085.0,82084.0,0.13576]
[1741929361811,0.255831,82085.0,82084.0,0.13576]
[1741929362027,0.255831,82085.0,82084.0,0.15351881]
[1741929362195,0.255831,82085.0,82084.0,0.13576]